bitfinex-derivatives/quotes_SOLF0:USTF0_20241231
["timestamp","ask_amount","ask_price","bid_price","bid_amount"]
[1735614292135,2.6374,189.94,189.89,7.68317322]
[1735614292330,2.6374,189.94,189.9,15.79035618]
[1735614292532,2.6375,189.93,189.91,4.26790065]
[1735614292727,7.68317322,189.96,189.87,3.04]
[1735614292728,7.68317322,189.94,189.87,10.72317322]
[1735614292932,7.68317322,189.94,189.88,15.79290656]
[1735614293133,2.6375,189.93,189.89,8.9632723]
[1735614293334,2.6375,189.93,189.9,4.26852141]
[1735614293529,2.6375,189.93,189.87,10.72317322]
[1735614293736,2.6375,189.93,189.88,15.79184269]
[1735614293936,2.6375,189.93,189.89,8.9626666]
[1735614294132,2.6375,189.93,189.9,4.26823505]
[1735614294331,2.6375,189.93,189.87,10.72317322]
[1735614294532,2.6375,189.93,189.89,2.6379]
[1735614294741,2.6375,189.93,189.9,4.26817171]
[1735614294942,2.6375,189.93,189.89,2.6379]
[1735614295139,2.6375,189.93,189.9,4.26816064]
[1735614295342,2.6375,189.93,189.89,2.6379]
[1735614295542,2.6375,189.93,189.9,4.26821851]
[1735614295841,2.6375,189.93,189.89,2.6379]
[1735614296042,2.6375,189.93,189.9,4.26740012]
[1735614296342,7.68317322,189.96,189.89,7.68317322]
[1735614296537,7.68317322,189.96,189.9,15.78388069]
[1735614296745,2.6371,189.95,189.91,4.26610812]
[1735614296939,2.6371,189.95,189.92,4.26555798]
[1735614297140,2.6371,189.95,189.9,2.6377]
[1735614297340,2.6371,189.95,189.91,8.95688297]
[1735614297546,2.6371,189.95,189.92,4.26485767]
[1735614297741,2.6371,189.95,189.9,2.6377]
[1735614298045,2.6371,189.95,189.91,8.95506256]
[1735614298242,2.6371,189.95,189.92,4.26464239]
[1735614298441,2.6371,189.95,189.9,2.6377]
[1735614298743,2.6373,189.94,189.91,4.26427509]
[1735614298945,2.6373,189.94,189.9,2.6377]
[1735614299146,2.6373,189.94,189.91,4.26440643]
[1735614299446,2.6373,189.94,189.9,2.6377]
[1735614299649,2.6374,189.93,189.91,4.26399977]
[1735614299842,2.6374,189.93,189.89,2.6379]
[1735614300041,2.6374,189.93,189.9,8.95492219]
[1735614300346,2.6374,189.93,189.89,2.6379]
[1735614300347,2.6374,189.93,189.91,4.26456209]
[1735614300547,2.6374,189.93,189.89,2.6379]
[1735614300745,2.6374,189.93,189.9,8.95426559]
[1735614300946,2.6372,189.95,189.91,4.26424925]
[1735614301147,7.68317322,189.96,189.9,2.6377]
[1735614301945,2.6374,189.93,189.89,2.6379]
[1735614302148,7.68317322,189.94,189.9,4.26454947]
[1735614302348,7.68317322,189.94,189.88,7.68317322]
[1735614302540,7.68317322,189.94,189.89,4.26528048]
[1735614302743,7.68317322,189.94,189.86,37.04512561]
[1735614302938,7.68317322,189.94,189.87,8.95746317]
[1735614303146,7.68317322,189.92,189.86,7.68317322]
[1735614303346,7.68317322,189.92,189.87,4.26605997]
[1735614303551,2.6379,189.9,189.86,10.32147322]
[1735614303744,7.68317322,189.92,189.84,16.50259695]
[1735614303948,7.68317322,189.92,189.85,15.78638598]
[1735614304144,2.6382,189.87,189.86,4.26674108]
[1735614304350,7.68317322,189.88,189.82,7.26422373]
[1735614304551,7.68317322,189.88,189.83,8.96312793]
[1735614304749,2.6382,189.87,189.84,4.26839491]
[1735614304950,7.68317322,189.88,189.82,2.6389]
[1735614305150,7.68317322,189.88,189.83,8.96272604]
[1735614305452,2.6382,189.87,189.84,4.26820907]
[1735614305653,2.6382,189.87,189.82,10.32207322]
[1735614305853,2.6382,189.87,189.83,15.79128273]
[1735614306049,2.6384,189.86,189.84,4.26805392]
[1735614306249,7.68317322,189.88,189.84,2.6386]
[1735614306449,7.68317322,189.9,189.85,4.26798145]
[1735614306650,2.6382,189.88,189.82,7.68317322]
[1735614306852,2.6382,189.88,189.83,18.43009177]
[1735614307052,2.6382,189.88,189.84,4.26808391]
[1735614307254,2.6382,189.88,189.83,2.6387]
[1735614307445,2.6382,189.88,189.84,4.26836989]
[1735614307650,2.6382,189.88,189.83,2.6387]
[1735614307950,7.68317322,189.88,189.84,4.26856268]
[1735614308155,2.6385,189.86,189.81,2.6389]
[1735614308358,2.6385,189.86,189.82,15.79386293]
[1735614308552,2.6385,189.86,189.83,8.96383866]
[1735614308756,2.6385,189.85,189.84,4.26876517]
[1735614309453,2.6383,189.87,189.81,2.6389]
[1735614309753,2.6383,189.87,189.82,8.96620095]
[1735614309953,2.6383,189.87,189.83,4.2698389]
[1735614310159,2.6383,189.87,189.81,2.6389]
[1735614310349,7.68317322,189.88,189.82,16.64938071]
[1735614310553,2.6381,189.88,189.84,2.6386]
[1735614311053,2.6381,189.88,189.82,7.68317322]
[1735614311257,2.6381,189.88,189.83,18.43388855]
[1735614311554,10.32107322,189.9,189.84,15.79448623]
[1735614311854,10.32107322,189.9,189.85,6.90782355]
[1735614312063,10.32107322,189.9,189.85,2.6385]
[1735614312560,2.6379,189.89,189.86,4.26878994]
[1735614312759,2.6379,189.89,189.85,2.6385]
[1735614312961,2.6379,189.89,189.86,4.26877423]
[1735614313157,10.72317322,189.92,189.84,7.68317322]
[1735614313358,7.68317322,189.94,189.86,7.68317322]
[1735614313665,7.68317322,189.96,189.9,7.68317322]
[1735614313859,2.6372,189.95,189.91,4.26600201]
[1735614314056,7.68317322,189.96,189.88,7.68317322]
[1735614314257,7.68317322,189.96,189.89,15.78487101]
[1735614314459,2.6375,189.93,189.9,4.26657833]
[1735614314762,7.68317322,189.94,189.88,7.68317322]
[1735614315061,7.68317322,189.94,189.89,4.26623914]
[1735614315255,7.68317322,189.94,189.88,7.68317322]
[1735614315256,2.6376,189.92,189.88,7.68317322]
[1735614315454,7.68317322,189.94,189.89,4.26608488]
[1735614315657,2.6379,189.89,189.86,9.26607322]
[1735614315855,7.68317322,189.92,189.87,4.26695579]
[1735614316059,7.68317322,189.9,189.85,10.33672556]
[1735614316267,2.638,189.89,189.86,4.26802675]
[1735614316463,7.68317322,189.9,189.85,10.33672556]
[1735614316765,7.68317322,189.9,189.86,4.26812153]
[1735614317064,7.68317322,189.92,189.85,3.0472]
[1735614317263,7.68317322,189.92,189.86,4.2684834]
[1735614317459,7.68317322,189.92,189.85,3.0472]
[1735614317658,7.68317322,189.92,189.86,23.47164988]
[1735614317853,3.04,189.93,189.86,7.68317322]
[1735614318059,5.6775,189.93,189.88,2.638]
[1735614318363,5.6775,189.93,189.89,4.26664658]
[1735614318562,5.6775,189.93,189.9,4.26664658]
[1735614318760,5.6775,189.93,189.88,10.32117322]
[1735614318965,5.6775,189.93,189.89,8.95592562]
[1735614319162,5.6775,189.93,189.9,4.26507318]
[1735614319362,5.6775,189.93,189.88,10.32117322]
[1735614319664,2.6375,189.93,189.89,11.59254426]
[1735614319864,2.6375,189.93,189.9,4.26441543]
[1735614320067,7.68317322,189.96,189.9,7.68317322]
[1735614320262,3.04,189.97,189.91,8.95151889]
[1735614320572,10.72317322,189.97,189.92,4.26295753]
[1735614320866,7.68317322,189.97,189.9,7.68317322]
[1735614321067,7.68317322,189.97,189.91,15.76978671]
[1735614321267,7.68317322,189.97,189.92,8.95020803]
[1735614321468,10.32007322,189.97,189.93,4.26247242]
[1735614321665,7.68317322,189.97,189.9,7.68317322]
[1735614321862,7.68317322,189.97,189.91,15.77029174]
[1735614322058,7.68317322,189.97,189.92,8.95039742]
[1735614322258,7.68317322,189.97,189.9,7.68317322]
[1735614322465,7.68317322,189.97,189.93,4.26228964]
[1735614322662,7.68317322,189.97,189.91,2.6376]
[1735614323569,7.68317322,189.93,189.88,29.15810224]
[1735614323768,7.68317322,189.9,189.87,29.15810224]
[1735614324867,7.68317322,189.9,189.83,7.68317322]
[1735614325064,2.6381,189.88,189.83,7.68317322]
[1735614325469,2.6381,189.88,189.84,8.96220743]
[1735614325773,2.6381,189.88,189.85,4.2679584]
[1735614325966,2.6381,189.88,189.83,10.32187322]
[1735614326168,2.6381,189.88,189.84,8.9623844]
[1735614326466,2.6381,189.88,189.85,4.26794762]
[1735614326770,2.6381,189.88,189.83,10.32187322]
[1735614326972,7.68317322,189.9,189.84,8.96214222]
[1735614327170,2.6383,189.86,189.83,7.68317322]
[1735614328271,2.6383,189.86,189.82,2.54028325]
[1735614329276,2.6383,189.86,189.83,4.26840549]
[1735614329476,2.6383,189.86,189.82,2.54028325]
[1735614330272,2.6386,189.85,189.82,2.54028325]
[1735614332473,2.6387,189.84,189.82,2.54028325]
[1735614333176,2.6387,189.84,189.81,63.98880659]
[1735614333381,7.68317322,189.86,189.81,56.30563337]
[1735614333678,7.68317322,189.84,189.78,7.68317322]
[1735614333881,7.68317322,189.84,189.79,15.78802467]
[1735614334076,2.6389,189.83,189.8,8.96058638]
[1735614334279,2.6389,189.83,189.81,4.26714893]
[1735614334579,2.6389,189.83,189.78,10.32257322]
[1735614334780,2.6389,189.83,189.79,15.78536091]
[1735614334981,7.68317322,189.84,189.8,4.26642831]
[1735614335184,7.68317322,189.84,189.78,7.68317322]
[1735614335382,7.68317322,189.84,189.79,8.95898926]
[1735614335680,7.68317322,189.84,189.8,4.26638693]
[1735614335876,7.68317322,189.84,189.78,7.68317322]
[1735614336180,7.68317322,189.84,189.79,8.95784351]
[1735614336381,7.68317322,189.84,189.8,4.26585805]
[1735614336581,7.68317322,189.82,189.76,7.28952556]
[1735614336780,7.68317322,189.8,189.77,4.26598186]
[1735614336985,7.68317322,189.8,189.76,7.28952556]
[1735614336986,2.6396,189.78,189.76,7.28952556]
[1735614337284,7.68317322,189.78,189.76,7.28952556]
[1735614337587,2.6398,189.76,189.73,29.15810224]
[1735614337784,2.6398,189.76,189.74,4.26713593]
[1735614338089,2.6397,189.77,189.73,29.15810224]
[1735614338275,7.68317322,189.78,189.73,29.15810224]
[1735614338586,7.68317322,189.78,189.7,87.47430675]
[1735614338587,7.68317322,189.78,189.7,14.97269878]
[1735614338783,7.68317322,189.76,189.71,4.26362179]
[1735614339081,10.72317322,189.76,189.7,7.28952556]
[1735614339278,2.6403,189.72,189.71,4.26376547]
[1735614339487,7.68317322,189.74,189.68,7.68317322]
[1735614339781,7.68317322,189.74,189.69,4.26171645]
[1735614339983,7.68317322,189.74,189.67,7.28952556]
[1735614340178,7.68317322,189.74,189.68,11.08077646]
[1735614340378,7.68317322,189.74,189.66,29.5517499]
[1735614340379,7.68317322,189.74,189.69,4.2618371]
[1735614340580,2.6406,189.71,189.66,10.32427322]
[1735614340775,2.6406,189.71,189.67,11.07357941]
[1735614340978,2.6406,189.71,189.68,4.259069]
[1735614341276,2.6403,189.73,189.69,4.259069]
[1735614341487,2.6403,189.73,189.68,2.6408]
[1735614341673,2.6403,189.73,189.67,2.6409]
[1735614341876,2.6403,189.73,189.68,4.25670693]
[1735614342073,2.6403,189.73,189.67,2.6409]
[1735614342274,2.6404,189.72,189.68,4.25670693]
[1735614342576,2.6404,189.72,189.67,2.6409]
[1735614342775,2.6404,189.72,189.68,4.25517647]
[1735614342985,7.68317322,189.74,189.67,2.6409]
[1735614343281,2.6404,189.71,189.68,4.25486916]
[1735614343490,2.6404,189.71,189.66,10.32427322]
[1735614343680,2.6404,189.71,189.67,4.25374786]
[1735614343881,2.6404,189.71,189.66,10.32427322]
[1735614344179,2.6404,189.71,189.67,4.25468849]
[1735614344374,2.6404,189.71,189.66,10.32427322]
[1735614344579,3.04,189.76,189.65,3.1657]
[1735614344580,2.6403,189.73,189.68,7.68317322]
[1735614344782,4.5325,189.8,189.68,7.68317322]
[1735614344980,7.68317322,189.77,189.7,7.68317322]
[1735614345181,3.06,189.79,189.7,7.68317322]
[1735614345380,7.68317322,189.78,189.7,7.68317322]
[1735614345786,7.68317322,189.76,189.7,7.68317322]
[1735614346080,13.38287322,189.77,189.71,2.6404]
[1735614346481,7.68317322,189.75,189.68,7.68317322]
[1735614346677,2.6402,189.73,189.69,4.25172276]
[1735614346975,2.6402,189.73,189.68,7.68317322]
[1735614347175,2.6402,189.73,189.69,2.6407]
[1735614347882,7.68317322,189.75,189.66,7.68317322]
[1735614348086,2.6405,189.71,189.66,10.32427322]
[1735614349289,2.6404,189.71,189.66,10.32427322]
[1735614349780,2.6404,189.71,189.66,7.68317322]
[1735614349987,3.06,189.72,189.65,3.1657]
[1735614349988,3.06,189.72,189.68,7.68317322]
[1735614350586,3.06,189.72,189.69,2.6407]
[1735614353988,2.6404,189.71,189.68,7.68317322]
[1735614355187,2.6404,189.71,189.67,2.6409]
[1735614358095,2.6407,189.7,189.66,7.68317322]
[1735614358291,7.68317322,189.69,189.62,7.28952556]
[1735614358598,7.68317322,189.69,189.65,2.6413]
[1735614358599,2.6408,189.69,189.65,2.6413]
[1735614358791,7.68317322,189.71,189.65,7.68317322]
[1735614358992,3.06,189.72,189.65,7.68317322]
[1735614359189,5.7003,189.72,189.67,2.6409]
[1735614359695,3.06,189.72,189.67,2.6409]
[1735614359891,2.6405,189.71,189.67,2.6409]
[1735614361891,3.06,189.72,189.68,2.6408]
[1735614362594,5.7003,189.72,189.68,2.6408]
[1735614362796,7.68317322,189.75,189.67,7.68317322]
[1735614362997,10.32307322,189.75,189.69,7.68317322]
[1735614363600,2.6399,189.75,189.7,2.6405]
[1735614363794,3.06,189.76,189.69,7.68317322]
[1735614363996,7.68317322,189.77,189.69,7.68317322]
[1735614364204,3.06,189.78,189.71,7.68317322]
[1735614364404,7.68317322,189.77,189.69,7.68317322]
[1735614364901,7.68317322,189.77,189.69,10.32387322]
[1735614365499,2.6402,189.73,189.69,10.32387322]
[1735614366302,2.6402,189.73,189.7,4.25347477]
[1735614366506,2.6402,189.73,189.69,2.6407]
[1735614366704,2.6402,189.73,189.7,4.25459203]
[1735614366905,2.6402,189.73,189.69,2.6407]
[1735614367103,2.6402,189.73,189.7,4.25533226]
[1735614367305,2.6402,189.73,189.69,10.32387322]
[1735614367502,2.6404,189.72,189.7,4.25599729]
[1735614367702,2.6404,189.72,189.68,7.28952556]
[1735614368006,2.64,189.74,189.69,14.58127663]
[1735614368199,7.68317322,189.77,189.7,4.256869]
[1735614368503,5.6995,189.78,189.71,7.68317322]
[1735614368807,10.74317322,189.79,189.72,4.25492853]
[1735614369000,10.74317322,189.79,189.73,7.68317322]
[1735614369799,13.38257322,189.79,189.74,2.64]
[1735614370000,3.06,189.79,189.73,7.68317322]
[1735614370195,2.6395,189.78,189.74,4.25213377]
[1735614370405,3.06,189.79,189.73,10.32327322]
[1735614370603,3.06,189.79,189.74,4.25401642]
[1735614370806,3.06,189.79,189.73,10.32327322]
[1735614371002,3.06,189.79,189.74,8.58737012]
[1735614371200,7.68317322,189.81,189.74,4.33432468]
[1735614371402,10.74317322,189.81,189.74,4.33432468]
[1735614371906,10.74317322,189.81,189.74,7.28952556]
[1735614372508,3.06,189.81,189.75,11.93929273]
[1735614372711,7.68317322,189.85,189.77,7.68317322]
[1735614373008,10.32177322,189.85,189.8,2.6392]
[1735614373211,7.68317322,189.85,189.77,7.68317322]
[1735614373503,7.68317322,189.83,189.78,4.25532231]
[1735614373702,7.68317322,189.83,189.77,7.68317322]
[1735614373904,3.06,189.87,189.78,4.25446533]
[1735614374099,7.68317322,189.85,189.77,36.84127546]
[1735614374804,7.68317322,189.83,189.77,36.84127546]
[1735614375002,7.68317322,189.83,189.77,7.68317322]
[1735614375504,2.6391,189.81,189.77,7.68317322]
[1735614376008,2.639,189.82,189.77,10.32277322]
[1735614376805,7.68317322,189.85,189.78,2.6394]
[1735614377108,2.6388,189.83,189.78,2.6394]
[1735614378110,2.6388,189.83,189.79,7.68317322]
[1735614378506,2.6386,189.84,189.8,6.90028876]
[1735614378708,2.6386,189.84,189.8,2.6391]
[1735614379416,2.6386,189.84,189.79,7.68317322]
[1735614379615,2.6388,189.83,189.8,4.26090891]
[1735614379815,2.6388,189.83,189.79,10.32247322]
[1735614380007,7.68317322,189.83,189.76,46.45361382]
[1735614380211,2.6392,189.8,189.77,11.08040414]
[1735614380410,2.6392,189.8,189.78,4.2616939]
[1735614380605,2.6392,189.8,189.76,46.45361382]
[1735614380809,2.6392,189.8,189.77,4.26271696]
[1735614381010,2.6392,189.8,189.78,4.26280578]
[1735614381213,2.6392,189.8,189.76,2.6397]
[1735614381403,2.6392,189.8,189.77,4.26251222]
[1735614381605,2.6392,189.8,189.78,4.26251222]
[1735614381809,2.6392,189.8,189.76,2.6397]
[1735614382008,2.6392,189.8,189.77,4.2634643]
[1735614382204,2.6393,189.79,189.78,4.2634643]
[1735614384514,7.68317322,189.81,189.74,1.5902]
[1735614384705,7.68317322,189.79,189.75,4.26501706]
[1735614384909,3.06,189.81,189.73,7.28952556]
[1735614384910,7.68317322,189.77,189.73,7.28952556]
[1735614385114,7.68317322,189.75,189.73,7.28952556]
[1735614385314,2.64,189.74,189.73,7.28952556]
[1735614386009,2.6403,189.72,189.68,1.5208]
[1735614386212,2.6403,189.72,189.69,4.26977999]
[1735614386415,2.6403,189.72,189.7,4.26977999]
[1735614386713,2.6403,189.72,189.68,1.5208]
[1735614386913,2.6403,189.72,189.69,4.26974309]
[1735614387109,3.06,189.76,189.7,4.26974309]
[1735614387110,7.68317322,189.73,189.7,4.26974309]
[1735614387317,7.68317322,189.73,189.67,7.68317322]
[1735614387514,7.68317322,189.73,189.68,11.10140073]
[1735614387716,7.68317322,189.73,189.69,4.26976951]
[1735614387914,7.68317322,189.73,189.66,2.6411]
[1735614388116,7.68317322,189.73,189.67,11.10363184]
[1735614388319,12.03194963,189.75,189.68,4.27062763]
[1735614388512,2.6406,189.7,189.69,4.27062763]
[1735614389108,12.03194963,189.75,189.69,4.27062763]
[1735614389411,2.6404,189.71,189.64,29.15810224]
[1735614389606,2.6404,189.71,189.65,11.1011549]
[1735614390010,2.6406,189.7,189.66,11.1011549]
[1735614390209,2.6406,189.7,189.64,29.15810224]
[1735614390414,2.6406,189.7,189.65,11.10256656]
[1735614390712,12.03194963,189.75,189.66,11.10256656]
[1735614390909,12.03194963,189.75,189.67,11.10256656]
[1735614391105,2.6407,189.69,189.68,4.27021791]
[1735614392419,5.7006,189.71,189.68,4.27021791]
[1735614392611,5.7006,189.71,189.69,4.27021791]
[1735614392811,5.7006,189.71,189.64,7.28952556]
[1735614393012,2.6406,189.7,189.65,13.74005024]
[1735614393217,12.03194963,189.75,189.66,11.09885024]
[1735614393417,3.06,189.74,189.67,11.09885024]
[1735614393619,3.06,189.74,189.68,11.09885024]
[1735614393818,2.6406,189.7,189.69,4.26878855]
[1735614394217,3.06,189.74,189.69,4.26878855]
[1735614394419,12.03194963,189.78,189.7,4.26896407]
[1735614394719,3.06,189.77,189.65,19.32147519]
[1735614394910,3.06,189.77,189.66,11.09926849]
[1735614395115,3.06,189.77,189.67,11.09926849]
[1735614395316,3.06,189.77,189.68,11.09926849]
[1735614395510,3.06,189.77,189.69,4.26894942]
[1735614395714,3.06,189.77,189.65,41.19005187]
[1735614395914,3.06,189.77,189.66,11.0977311]
[1735614396122,3.06,189.77,189.67,11.0977311]
[1735614396317,3.06,189.77,189.68,13.7385311]
[1735614396520,3.06,189.77,189.69,4.26835811]
[1735614396815,3.06,189.77,189.66,2.641]
[1735614397014,3.06,189.77,189.67,4.26823787]
[1735614397216,3.06,189.77,189.66,2.641]
[1735614397416,3.06,189.77,189.67,4.26931165]
[1735614397616,3.06,189.77,189.66,2.641]
[1735614397812,3.06,189.77,189.67,4.26884905]
[1735614398017,3.06,189.77,189.66,2.641]
[1735614398223,3.06,189.77,189.67,4.26855386]
[1735614398421,3.06,189.77,189.66,2.641]
[1735614398619,2.6404,189.72,189.67,4.26797628]
[1735614398820,2.6404,189.72,189.67,2.6409]
[1735614399017,2.6402,189.73,189.65,12.03194963]
[1735614399323,2.6402,189.73,189.66,11.09620568]
[1735614399527,2.6402,189.73,189.67,11.09620568]
[1735614399726,2.6402,189.73,189.69,2.6407]
[1735614400326,1.528,189.8,189.7,4.26447217]
[1735614400528,4.588,189.8,189.71,5.80257868]
[1735614400726,3.0636,189.87,189.71,5.80257868]
[1735614400727,2.6395,189.78,189.73,2.6401]
[1735614400926,15.09194963,189.81,189.73,2.6401]
[1735614401127,3.06,189.81,189.71,13.56974963]
[1735614401329,3.06,189.81,189.72,11.08408737]
[1735614401527,2.6394,189.79,189.74,2.6399]
[1735614401827,2.6394,189.79,189.75,4.26325422]
[1735614402027,2.6394,189.79,189.74,2.6399]
[1735614402329,2.6395,189.78,189.75,4.26251654]
[1735614402528,2.6395,189.78,189.74,2.6399]
[1735614402725,2.6395,189.78,189.75,4.26279059]
[1735614402934,2.6395,189.78,189.74,2.6399]
[1735614403124,2.6395,189.78,189.75,4.26261837]
[1735614403324,2.6395,189.78,189.74,2.6399]
[1735614403527,2.6395,189.78,189.75,4.26315705]
[1735614403728,2.6395,189.78,189.74,2.6399]
[1735614404025,2.6395,189.78,189.75,4.26324901]
[1735614404228,2.6395,189.78,189.74,2.6399]
[1735614411637,2.6398,189.76,189.73,7.69343738]
[1735614411832,7.69343738,189.77,189.74,4.26299959]
[1735614412037,7.69343738,189.77,189.71,9.23123738]
[1735614412038,7.69343738,189.77,189.71,1.5378]
[1735614412237,2.6403,189.72,189.7,1.6011]
[1735614413140,2.6403,189.72,189.69,7.69343738]
[1735614413329,2.6403,189.72,189.68,9.93022556]
[1735614413532,2.6403,189.72,189.69,4.26511547]
[1735614413734,2.6403,189.72,189.68,2.6407]
[1735614413930,7.69343738,189.75,189.69,4.2650584]
[1735614414140,2.6402,189.73,189.68,2.6407]
[1735614414340,2.6402,189.73,189.69,4.26444192]
[1735614414534,2.6402,189.73,189.69,2.6407]
[1735614415236,7.69343738,189.75,189.67,9.20423738]
[1735614415437,2.64,189.74,189.7,2.6405]
[1735614422950,7.69343738,189.75,189.67,1.5108]
[1735614423148,2.6405,189.71,189.67,4.1517]
[1735614423355,7.69343738,189.73,189.67,1.5108]
[1735614423555,7.69343738,189.73,189.68,4.26738045]
[1735614423753,7.69343738,189.73,189.67,1.5108]
[1735614424052,7.69343738,189.73,189.68,4.26684788]
[1735614424254,7.69343738,189.73,189.69,4.26684788]
[1735614424450,7.69343738,189.73,189.67,1.5108]
[1735614424451,2.6402,189.73,189.68,7.69343738]
[1735614424655,2.6402,189.73,189.69,4.26718707]
[1735614424954,7.69343738,189.75,189.7,4.26620307]
[1735614425146,7.69343738,189.75,189.68,7.69343738]
[1735614425352,8.9284145,189.85,189.72,7.69343738]
[1735614425546,7.69343738,189.79,189.72,7.69343738]
[1735614425750,8.9284145,189.85,189.73,11.08763419]
[1735614425751,10.73343738,189.81,189.73,11.08763419]
[1735614425954,10.73343738,189.81,189.72,7.69343738]
[1735614425955,2.6393,189.8,189.75,2.6397]
[1735614426558,10.73343738,189.81,189.77,2.6396]
[1735614427459,13.37253738,189.81,189.76,2.6397]
[1735614429166,5.6791,189.81,189.74,7.69343738]
[1735614429456,3.04,189.81,189.77,2.6395]
[1735614430550,2.6389,189.82,189.77,2.6395]
[1735614430756,2.6389,189.82,189.78,4.26288085]
[1735614430957,2.6389,189.82,189.77,2.6395]
[1735614431262,2.6389,189.82,189.78,4.26291102]
[1735614431457,2.6389,189.82,189.77,2.6395]
[1735614431656,2.6389,189.82,189.78,4.26235348]
[1735614431860,7.69343738,189.83,189.79,2.6393]
[1735614432062,1.5208,189.86,189.78,7.69343738]
[1735614432261,7.69343738,189.87,189.8,7.69343738]
[1735614432453,3.04,189.88,189.82,7.69343738]
[1735614432765,7.69343738,189.89,189.83,4.25696207]
[1735614432961,7.69343738,189.89,189.82,7.69343738]
[1735614433170,7.69343738,189.89,189.83,4.25662562]
[1735614433368,7.69343738,189.89,189.84,2.6386]
[1735614434678,7.69343738,189.87,189.8,7.69343738]
[1735614435266,2.6385,189.86,189.8,10.33243738]
[1735614435663,2.6385,189.86,189.8,7.69343738]
[1735614435860,2.6385,189.86,189.82,2.6389]
[1735614436061,7.69343738,189.87,189.82,2.6389]
[1735614437258,7.69343738,189.87,189.8,10.33243738]
[1735614437468,7.69343738,189.87,189.8,2.639]
[1735614437664,7.69343738,189.87,189.79,1.4605]
[1735614437969,1.4821,189.9,189.78,2.6395]
[1735614437970,2.6388,189.83,189.78,2.6395]
[1735614438172,10.33223738,189.83,189.78,2.6395]
[1735614438572,7.69343738,189.83,189.76,7.28952556]
[1735614438970,7.69343738,189.83,189.75,4.2033]
[1735614439168,3.04,189.86,189.75,4.2033]
[1735614439169,7.69343738,189.81,189.75,4.2033]
[1735614439368,7.69343738,189.79,189.72,29.15810224]
[1735614439770,7.69343738,189.79,189.73,4.2538016]
[1735614439968,2.6396,189.77,189.72,2.6402]
[1735614440766,2.6397,189.76,189.72,2.6402]
[1735614441073,2.6397,189.76,189.71,10.33383738]
[1735614442066,3.04,189.76,189.69,13.39843738]
[1735614442271,3.04,189.76,189.69,3.0644]
[1735614442976,3.04,189.76,189.7,4.25648246]
[1735614443173,3.04,189.76,189.69,3.0644]
[1735614443373,3.04,189.76,189.7,4.25615516]
[1735614443569,3.04,189.76,189.73,2.6401]
[1735614443775,3.04,189.76,189.69,3.0644]
[1735614444067,6.084,189.8,189.7,4.25556314]
[1735614444266,2.6393,189.79,189.73,2.64]
[1735614444673,2.6396,189.77,189.72,2.6403]
[1735614444882,2.6396,189.77,189.69,3.0644]
[1735614445071,2.6396,189.77,189.7,4.25745544]
[1735614445274,2.6396,189.77,189.72,2.6402]
[1735614445674,2.6397,189.76,189.69,3.0644]
[1735614445875,12.0280762,189.78,189.7,11.07287561]
[1735614446068,12.0280762,189.78,189.69,3.0644]
[1735614446069,12.0280762,189.78,189.69,1.6015]
[1735614446577,12.0280762,189.78,189.69,4.2422]
[1735614446778,12.0280762,189.78,189.67,1.485]
[1735614446972,12.0280762,189.78,189.66,7.28952556]
[1735614447173,12.0280762,189.78,189.67,13.72014927]
[1735614447376,12.0280762,189.78,189.68,4.26163882]
[1735614447578,12.0280762,189.78,189.67,2.6409]
[1735614447779,0.813404,189.77,189.67,2.6409]
[1735614447979,2.64,189.74,189.67,2.6409]
[1735614448177,3.04,189.73,189.68,2.6408]
[1735614448380,3.04,189.74,189.65,12.0280762]
[1735614448577,3.04,189.74,189.66,11.07733399]
[1735614448777,3.04,189.74,189.68,2.6408]
[1735614449577,2.6403,189.72,189.68,2.6408]
[1735614449777,12.0280762,189.78,189.7,2.6406]
[1735614449983,2.6398,189.76,189.65,12.0280762]
[1735614450186,2.6398,189.76,189.66,11.07418323]
[1735614450373,2.6398,189.76,189.7,2.6404]
[1735614450871,2.6401,189.74,189.7,2.6404]
[1735614451278,3.04,189.77,189.7,2.6404]
[1735614452487,2.6399,189.75,189.7,2.6404]
[1735614453083,3.04,189.77,189.7,2.6404]
[1735614453283,3.04,189.77,189.68,2.6408]
[1735614453486,3.04,189.77,189.69,4.2591172]
[1735614453678,3.04,189.77,189.65,12.0280762]